[Event "Titled Tuesday Blitz July 6 2021"]
[White "Wagh Suyog"]
[Black "Kalajzic, Ivan"]
[WhiteFideId "25071688"]
[BlackFideId "14506378"]
[WhiteElo "2219"]
[BlackElo "2163"]
[Result "1-0"]
[Round "06"]
[TimeControl "180+1"]
[Date "2021.07.06"]
[WhiteClock "0:00:03"]
[BlackClock "0:00:01"]

1. e4 {[%clk 0:03:00]}  Nc6 {[%clk 0:02:59]} 2. Nf3 {[%clk 0:02:57]}  d6 {[%clk 0:02:59]} 3. h3 {[%clk 0:02:56]}  Nf6 {[%clk 0:02:58]} 4. Nc3 {[%clk 0:02:56]}  g6 {[%clk 0:02:58]} 5. d4 {[%clk 0:02:56]}  Bg7 {[%clk 0:02:58]} 6. Be2 {[%clk 0:02:55]}  O-O {[%clk 0:02:58]} 7. O-O {[%clk 0:02:56]}  e5 {[%clk 0:02:56]} 8. d5 {[%clk 0:02:52]}  Ne7 {[%clk 0:02:55]} 9. a4 {[%clk 0:02:52]}  Ne8 {[%clk 0:02:54]} 10. a5 {[%clk 0:02:52]}  a6 {[%clk 0:02:53]} 11. Bc4 {[%clk 0:02:51]}  h6 {[%clk 0:02:52]} 12. Ne1 {[%clk 0:02:48]}  f5 {[%clk 0:02:52]} 13. Nd3 {[%clk 0:02:48]}  f4 {[%clk 0:02:49]} 14. Ne1 {[%clk 0:02:44]}  g5 {[%clk 0:02:44]} 15. Be2 {[%clk 0:02:43]}  Nf6 {[%clk 0:02:43]} 16. b4 {[%clk 0:02:42]}  Qe8 {[%clk 0:02:35]} 17. Bg4 {[%clk 0:02:31]}  h5 {[%clk 0:02:33]} 18. Bxc8 {[%clk 0:02:31]}  Qxc8 {[%clk 0:02:34]} 19. b5 {[%clk 0:02:10]}  g4 {[%clk 0:02:34]} 20. hxg4 {[%clk 0:01:59]}  hxg4 {[%clk 0:02:33]} 21. bxa6 {[%clk 0:01:57]}  bxa6 {[%clk 0:02:32]} 22. Nd3 {[%clk 0:01:36]}  Ng6 {[%clk 0:02:25]} 23. Re1 {[%clk 0:01:34]}  Rf7 {[%clk 0:02:23]} 24. Nb4 {[%clk 0:01:18]}  Bf8 {[%clk 0:02:17]} 25. Nc6 {[%clk 0:01:17]}  Rh7 {[%clk 0:02:15]} 26. Qd3 {[%clk 0:00:34]}  Qe8 {[%clk 0:02:10]} 27. Kf1 {[%clk 0:00:31]}  Ne7 {[%clk 0:01:43]} 28. Ke2 {[%clk 0:00:29]}  Nxc6 {[%clk 0:01:39]} 29. dxc6 {[%clk 0:00:29]}  Qxc6 {[%clk 0:01:39]} 30. Nd5 {[%clk 0:00:27]}  Nxd5 {[%clk 0:01:34]} 31. exd5 {[%clk 0:00:28]}  Qe8 {[%clk 0:01:30]} 32. Kd1 {[%clk 0:00:28]}  Qh5 {[%clk 0:01:09]} 33. Rb1 {[%clk 0:00:23]}  Re8 {[%clk 0:00:53]} 34. Qe4 {[%clk 0:00:20]}  Qf7 {[%clk 0:00:32]} 35. Bxf4 {[%clk 0:00:12]}  Bh6 {[%clk 0:00:28]} 36. Bg3 {[%clk 0:00:05]}  Bg5 {[%clk 0:00:23]} 37. c4 {[%clk 0:00:03]}  Rg7 {[%clk 0:00:19]} 38. Kc2 {[%clk 0:00:04]}  Qd7 {[%clk 0:00:19]} 39. Qd3 {[%clk 0:00:03]}  Qa4+ {[%clk 0:00:19]} 40. Qb3 {[%clk 0:00:03]}  Qxa5 {[%clk 0:00:18]} 41. Qc3 {[%clk 0:00:03]}  Qa2+ {[%clk 0:00:17]} 42. Rb2 {[%clk 0:00:03]}  Qa4+ {[%clk 0:00:17]} 43. Qb3 {[%clk 0:00:04]}  Qd7 {[%clk 0:00:17]} 44. Qd3 {[%clk 0:00:03]}  Rf8 {[%clk 0:00:16]} 45. Ra2 {[%clk 0:00:03]}  Bf4 {[%clk 0:00:15]} 46. Bh4 {[%clk 0:00:02]}  Qf7 {[%clk 0:00:10]} 47. Rxa6 {[%clk 0:00:01]}  Qh5 {[%clk 0:00:10]} 48. g3 {[%clk 0:00:01]}  Bh6 {[%clk 0:00:07]} 49. Bg5 {[%clk 0:00:01]}  Qxg5 {[%clk 0:00:06]} 50. Re2 {[%clk 0:00:02]}  Qc1+ {[%clk 0:00:05]} 51. Kb3 {[%clk 0:00:03]}  Rb8+ {[%clk 0:00:05]} 52. Ka2 {[%clk 0:00:02]}  Qf1 {[%clk 0:00:03]} 53. c5 {[%clk 0:00:02]}  Rf8 {[%clk 0:00:03]} 54. cxd6 {[%clk 0:00:01]}  Rxf2 {[%clk 0:00:03]} 55. Ra8+ {[%clk 0:00:02]}  Kf7 {[%clk 0:00:01]} 56. Rxf2+ {[%clk 0:00:02]}  Qxf2+ {[%clk 0:00:01]} 57. Kb3 {[%clk 0:00:03]}  Qf5 {[%clk 0:00:01]} 58. Qxf5# {[%clk 0:00:03]} 1-0


[Site "https://www.chess.com"]

[Event "Titled Tuesday Blitz July 6 2021"]
[White "Wagner, Dennis"]
[Black "Borisova, Ekaterina"]
[WhiteFideId "24650684"]
[BlackFideId "34124184"]
[WhiteElo "2355"]
[BlackElo "2021"]
[Result "1-0"]
[Round "06"]
[TimeControl "180+1"]
[Date "2021.07.06"]
[WhiteClock "0:00:02"]
[BlackClock "0:00:42"]

1. d4 {[%clk 0:03:00]}  Nf6 {[%clk 0:02:59]} 2. c4 {[%clk 0:03:00]}  e6 {[%clk 0:02:59]} 3. g3 {[%clk 0:02:58]}  c5 {[%clk 0:02:58]} 4. Nf3 {[%clk 0:02:56]}  cxd4 {[%clk 0:02:58]} 5. Nxd4 {[%clk 0:02:56]}  Nc6 {[%clk 0:02:58]} 6. Bg2 {[%clk 0:02:55]}  Qb6 {[%clk 0:02:57]} 7. Nb3 {[%clk 0:02:49]}  Bb4+ {[%clk 0:02:53]} 8. Bd2 {[%clk 0:02:48]}  d5 {[%clk 0:02:53]} 9. cxd5 {[%clk 0:02:44]}  exd5 {[%clk 0:02:52]} 10. O-O {[%clk 0:02:41]}  O-O {[%clk 0:02:51]} 11. Bg5 {[%clk 0:02:33]}  Be7 {[%clk 0:02:44]} 12. Nc3 {[%clk 0:02:27]}  Be6 {[%clk 0:02:41]} 13. Bxf6 {[%clk 0:02:07]}  Bxf6 {[%clk 0:02:41]} 14. Bxd5 {[%clk 0:02:06]}  Bxc3 {[%clk 0:02:39]} 15. bxc3 {[%clk 0:02:06]}  Rad8 {[%clk 0:02:32]} 16. c4 {[%clk 0:02:06]}  a5 {[%clk 0:02:30]} 17. Rb1 {[%clk 0:02:01]}  a4 {[%clk 0:02:29]} 18. Nd2 {[%clk 0:02:01]}  Qd4 {[%clk 0:02:15]} 19. Nf3 {[%clk 0:01:55]}  Qf6 {[%clk 0:02:09]} 20. Rxb7 {[%clk 0:01:50]}  Na5 {[%clk 0:02:09]} 21. Rb4 {[%clk 0:01:38]}  Nxc4 {[%clk 0:02:07]} 22. e4 {[%clk 0:01:00]}  Ne5 {[%clk 0:01:57]} 23. Nxe5 {[%clk 0:00:57]}  Qxe5 {[%clk 0:01:58]} 24. Qxa4 {[%clk 0:00:26]}  Bxd5 {[%clk 0:01:57]} 25. exd5 {[%clk 0:00:27]}  Qxd5 {[%clk 0:01:54]} 26. Qb3 {[%clk 0:00:20]}  Qxb3 {[%clk 0:01:45]} 27. axb3 {[%clk 0:00:21]}  Rd2 {[%clk 0:01:45]} 28. Rb7 {[%clk 0:00:18]}  h5 {[%clk 0:01:31]} 29. Re1 {[%clk 0:00:16]}  Rd3 {[%clk 0:01:28]} 30. h4 {[%clk 0:00:12]}  Rc8 {[%clk 0:01:24]} 31. Ree7 {[%clk 0:00:10]}  Rf3 {[%clk 0:01:24]} 32. Kg2 {[%clk 0:00:10]}  Rf5 {[%clk 0:01:23]} 33. Re3 {[%clk 0:00:07]}  Rc1 {[%clk 0:01:14]} 34. Rf3 {[%clk 0:00:05]}  Rg1+ {[%clk 0:01:12]} 35. Kxg1 {[%clk 0:00:05]}  Rxf3 {[%clk 0:01:12]} 36. Kf1 {[%clk 0:00:05]}  Rc3 {[%clk 0:01:12]} 37. Ke2 {[%clk 0:00:05]}  Rc2+ {[%clk 0:01:12]} 38. Ke3 {[%clk 0:00:05]}  g6 {[%clk 0:01:12]} 39. f3 {[%clk 0:00:05]}  Kg7 {[%clk 0:01:11]} 40. b4 {[%clk 0:00:04]}  Rb2 {[%clk 0:01:11]} 41. b5 {[%clk 0:00:04]}  Kf6 {[%clk 0:01:09]} 42. Kd4 {[%clk 0:00:03]}  Rb3 {[%clk 0:01:08]} 43. b6 {[%clk 0:00:03]}  Rxf3 {[%clk 0:01:02]} 44. Rc7 {[%clk 0:00:03]}  Rb3 {[%clk 0:01:00]} 45. b7 {[%clk 0:00:03]}  g5 {[%clk 0:00:54]} 46. Kc5 {[%clk 0:00:01]}  gxh4 {[%clk 0:00:48]} 47. gxh4 {[%clk 0:00:02]}  Ke6 {[%clk 0:00:47]} 48. Rc6+ {[%clk 0:00:01]}  Ke5 {[%clk 0:00:44]} 49. Rb6 {[%clk 0:00:02]}  Rc3+ {[%clk 0:00:42]} 50. Kb4 {[%clk 0:00:02]} 1-0


[Site "https://www.chess.com"]

[Event "Titled Tuesday Blitz July 6 2021"]
[White "Yanchenko, Roman"]
[Black "Sawlin, Leonid"]
[WhiteFideId "4137329"]
[BlackFideId "4689542"]
[WhiteElo "2514"]
[BlackElo "2412"]
[Result "1-0"]
[Round "06"]
[TimeControl "180+1"]
[Date "2021.07.06"]
[WhiteClock "0:00:10"]
[BlackClock "0:00:32"]

1. d4 {[%clk 0:03:00]}  e6 {[%clk 0:02:59]} 2. c4 {[%clk 0:03:01]}  d5 {[%clk 0:02:59]} 3. Nf3 {[%clk 0:03:01]}  Nf6 {[%clk 0:03:00]} 4. Nc3 {[%clk 0:03:01]}  Be7 {[%clk 0:03:01]} 5. Bg5 {[%clk 0:03:01]}  O-O {[%clk 0:03:01]} 6. e3 {[%clk 0:03:01]}  h6 {[%clk 0:03:02]} 7. Bh4 {[%clk 0:03:01]}  Ne4 {[%clk 0:03:03]} 8. Bxe7 {[%clk 0:03:00]}  Qxe7 {[%clk 0:03:04]} 9. Qc2 {[%clk 0:03:00]}  Nxc3 {[%clk 0:03:02]} 10. bxc3 {[%clk 0:03:00]}  dxc4 {[%clk 0:03:01]} 11. Bxc4 {[%clk 0:03:01]}  c5 {[%clk 0:03:01]} 12. O-O {[%clk 0:03:01]}  Nc6 {[%clk 0:03:01]} 13. Qe4 {[%clk 0:02:56]}  Rb8 {[%clk 0:02:54]} 14. Rab1 {[%clk 0:02:54]}  Bd7 {[%clk 0:02:46]} 15. Rfc1 {[%clk 0:02:47]}  Rfc8 {[%clk 0:02:40]} 16. h3 {[%clk 0:02:46]}  b6 {[%clk 0:02:23]} 17. Ba6 {[%clk 0:02:44]}  Rd8 {[%clk 0:02:19]} 18. Bd3 {[%clk 0:02:41]}  g6 {[%clk 0:02:19]} 19. Qf4 {[%clk 0:02:40]}  Kg7 {[%clk 0:02:11]} 20. Be4 {[%clk 0:02:38]}  Qf6 {[%clk 0:01:50]} 21. Qg3 {[%clk 0:02:26]}  Rbc8 {[%clk 0:01:41]} 22. dxc5 {[%clk 0:02:24]}  bxc5 {[%clk 0:01:42]} 23. Rb7 {[%clk 0:02:24]}  a6 {[%clk 0:01:32]} 24. Kh2 {[%clk 0:02:17]}  Na5 {[%clk 0:01:28]} 25. Ra7 {[%clk 0:02:12]}  Nc4 {[%clk 0:01:21]} 26. Rxa6 {[%clk 0:02:05]}  Bb5 {[%clk 0:01:13]} 27. Ra7 {[%clk 0:02:05]}  Nd2 {[%clk 0:00:54]} 28. Bb7 {[%clk 0:02:01]}  Nxf3+ {[%clk 0:00:49]} 29. Bxf3 {[%clk 0:01:55]}  Rd2 {[%clk 0:00:46]} 30. c4 {[%clk 0:01:47]}  Bc6 {[%clk 0:00:46]} 31. Rb1 {[%clk 0:01:39]}  Bxf3 {[%clk 0:00:45]} 32. gxf3 {[%clk 0:01:40]}  Rb2 {[%clk 0:00:41]} 33. Rd1 {[%clk 0:01:38]}  Rd8 {[%clk 0:00:40]} 34. Rxd8 {[%clk 0:00:28]}  Qxd8 {[%clk 0:00:41]} 35. Kg2 {[%clk 0:00:25]}  Qf6 {[%clk 0:00:37]} 36. Rc7 {[%clk 0:00:25]}  Rxa2 {[%clk 0:00:37]} 37. Rxc5 {[%clk 0:00:24]}  Ra1 {[%clk 0:00:37]} 38. Rc7 {[%clk 0:00:23]}  Rc1 {[%clk 0:00:34]} 39. c5 {[%clk 0:00:23]}  Qa1 {[%clk 0:00:34]} 40. Qh2 {[%clk 0:00:12]}  Qc3 {[%clk 0:00:34]} 41. c6 {[%clk 0:00:10]}  Qe1 {[%clk 0:00:33]} 42. Qe5+ {[%clk 0:00:10]}  Kg8 {[%clk 0:00:33]} 43. Rc8+ {[%clk 0:00:10]}  Kh7 {[%clk 0:00:32]} 44. Rh8# {[%clk 0:00:10]} 1-0


[Site "https://www.chess.com"]

[Event "Titled Tuesday Blitz July 6 2021"]
[White "pooh2012"]
[Black "Makhnev, Denis"]
[BlackFideId "13707647"]
[WhiteElo "2484"]
[BlackElo "2537"]
[Result "0-1"]
[Round "06"]
[TimeControl "180+1"]
[Date "2021.07.06"]
[WhiteClock "0:00:14"]
[BlackClock "0:00:43"]

1. e4 {[%clk 0:03:00]}  c6 {[%clk 0:02:59]} 2. Nc3 {[%clk 0:02:47]}  d5 {[%clk 0:03:00]} 3. Nf3 {[%clk 0:02:47]}  Bg4 {[%clk 0:02:59]} 4. h3 {[%clk 0:02:46]}  Bh5 {[%clk 0:02:59]} 5. exd5 {[%clk 0:02:43]}  cxd5 {[%clk 0:02:58]} 6. g4 {[%clk 0:02:39]}  Bg6 {[%clk 0:02:57]} 7. Bb5+ {[%clk 0:02:27]}  Nc6 {[%clk 0:02:57]} 8. Ne5 {[%clk 0:02:26]}  Rc8 {[%clk 0:02:56]} 9. h4 {[%clk 0:02:06]}  f6 {[%clk 0:02:44]} 10. Nxg6 {[%clk 0:02:04]}  hxg6 {[%clk 0:02:45]} 11. d4 {[%clk 0:01:56]}  e6 {[%clk 0:02:44]} 12. Bd3 {[%clk 0:01:52]}  Kf7 {[%clk 0:02:40]} 13. h5 {[%clk 0:01:48]}  gxh5 {[%clk 0:02:39]} 14. gxh5 {[%clk 0:01:47]}  f5 {[%clk 0:02:38]} 15. Be3 {[%clk 0:01:42]}  Nf6 {[%clk 0:02:35]} 16. Qf3 {[%clk 0:01:38]}  Bb4 {[%clk 0:02:32]} 17. Kf1 {[%clk 0:01:31]}  Bxc3 {[%clk 0:02:29]} 18. bxc3 {[%clk 0:01:30]}  Na5 {[%clk 0:02:27]} 19. Rb1 {[%clk 0:01:24]}  Qe7 {[%clk 0:02:03]} 20. Bd2 {[%clk 0:01:06]}  Nc4 {[%clk 0:02:00]} 21. Bc1 {[%clk 0:01:04]}  Ne4 {[%clk 0:01:56]} 22. Bxe4 {[%clk 0:01:00]}  dxe4 {[%clk 0:01:57]} 23. Qg3 {[%clk 0:01:00]}  b6 {[%clk 0:01:08]} 24. Qg6+ {[%clk 0:00:39]}  Kg8 {[%clk 0:01:08]} 25. h6 {[%clk 0:00:34]}  Qf7 {[%clk 0:01:07]} 26. Rg1 {[%clk 0:00:30]}  Rh7 {[%clk 0:01:06]} 27. d5 {[%clk 0:00:22]}  Qxg6 {[%clk 0:01:02]} 28. Rxg6 {[%clk 0:00:21]}  exd5 {[%clk 0:01:03]} 29. Rb5 {[%clk 0:00:21]}  Ne5 {[%clk 0:00:54]} 30. Re6 {[%clk 0:00:18]}  Ng4 {[%clk 0:00:50]} 31. Rxd5 {[%clk 0:00:17]}  Nxh6 {[%clk 0:00:48]} 32. Bxh6 {[%clk 0:00:16]}  Rxh6 {[%clk 0:00:48]} 33. Rxh6 {[%clk 0:00:16]}  gxh6 {[%clk 0:00:49]} 34. Rxf5 {[%clk 0:00:09]}  Rxc3 {[%clk 0:00:48]} 35. Re5 {[%clk 0:00:10]}  Rxc2 {[%clk 0:00:48]} 36. Rxe4 {[%clk 0:00:10]}  Rxa2 {[%clk 0:00:48]} 37. Rh4 {[%clk 0:00:10]}  Kg7 {[%clk 0:00:47]} 38. Rc4 {[%clk 0:00:11]}  b5 {[%clk 0:00:44]} 39. Rc7+ {[%clk 0:00:12]}  Kg6 {[%clk 0:00:44]} 40. Rb7 {[%clk 0:00:13]}  a6 {[%clk 0:00:43]} 41. Ke1 {[%clk 0:00:14]} 0-1


[Site "https://www.chess.com"]

[Event "Titled Tuesday Blitz July 6 2021"]
[White "Boidiya, Sidi"]
[Black "Wagner, Dennis"]
[WhiteFideId "19600100"]
[BlackFideId "24650684"]
[WhiteElo "2113"]
[BlackElo "2355"]
[Result "1/2-1/2"]
[Round "07"]
[TimeControl "180+1"]
[Date "2021.07.06"]
[WhiteClock "0:00:27"]
[BlackClock "0:00:11"]

1. e4 {[%clk 0:03:00]}  c5 {[%clk 0:02:59]} 2. Nc3 {[%clk 0:02:59]}  d6 {[%clk 0:02:59]} 3. g3 {[%clk 0:02:58]}  g6 {[%clk 0:02:59]} 4. Bg2 {[%clk 0:02:58]}  Bg7 {[%clk 0:02:59]} 5. d3 {[%clk 0:02:57]}  Nc6 {[%clk 0:02:59]} 6. h3 {[%clk 0:02:57]}  Rb8 {[%clk 0:02:59]} 7. a4 {[%clk 0:02:57]}  b6 {[%clk 0:02:55]} 8. Be3 {[%clk 0:02:56]}  e5 {[%clk 0:02:26]} 9. Qd2 {[%clk 0:02:53]}  Be6 {[%clk 0:02:23]} 10. Nge2 {[%clk 0:02:49]}  Nge7 {[%clk 0:02:21]} 11. O-O {[%clk 0:02:45]}  Qd7 {[%clk 0:02:21]} 12. Kh2 {[%clk 0:02:44]}  h5 {[%clk 0:02:14]} 13. f4 {[%clk 0:02:42]}  h4 {[%clk 0:02:13]} 14. g4 {[%clk 0:02:41]}  f5 {[%clk 0:02:13]} 15. g5 {[%clk 0:02:34]}  Nd4 {[%clk 0:02:09]} 16. Nd5 {[%clk 0:02:30]}  Bxd5 {[%clk 0:01:38]} 17. exd5 {[%clk 0:02:31]}  Nxe2 {[%clk 0:01:36]} 18. Qxe2 {[%clk 0:02:28]}  exf4 {[%clk 0:01:36]} 19. Bxf4 {[%clk 0:02:28]}  Bxb2 {[%clk 0:01:36]} 20. Rab1 {[%clk 0:02:10]}  Bd4 {[%clk 0:01:30]} 21. Rfe1 {[%clk 0:02:08]}  Bc3 {[%clk 0:01:28]} 22. Rf1 {[%clk 0:02:02]}  Kf7 {[%clk 0:01:26]} 23. Rb3 {[%clk 0:01:59]}  Ba5 {[%clk 0:01:23]} 24. d4 {[%clk 0:01:38]}  cxd4 {[%clk 0:01:09]} 25. Rd3 {[%clk 0:01:34]}  Bc3 {[%clk 0:01:06]} 26. Bd2 {[%clk 0:01:32]}  Rbc8 {[%clk 0:00:58]} 27. Re1 {[%clk 0:01:27]}  Rc7 {[%clk 0:00:51]} 28. Bxc3 {[%clk 0:01:23]}  dxc3 {[%clk 0:00:47]} 29. Qe3 {[%clk 0:01:17]}  Re8 {[%clk 0:00:32]} 30. Qd4 {[%clk 0:01:16]}  Ng8 {[%clk 0:00:27]} 31. Rde3 {[%clk 0:01:09]}  Rxe3 {[%clk 0:00:24]} 32. Rxe3 {[%clk 0:01:10]}  Qd8 {[%clk 0:00:21]} 33. Qxh4 {[%clk 0:01:07]}  Kg7 {[%clk 0:00:17]} 34. Qd4+ {[%clk 0:01:06]}  Kf8 {[%clk 0:00:16]} 35. h4 {[%clk 0:01:01]}  Qc8 {[%clk 0:00:09]} 36. Bf1 {[%clk 0:00:49]}  Re7 {[%clk 0:00:08]} 37. Rxc3 {[%clk 0:00:44]}  Qe8 {[%clk 0:00:09]} 38. Rf3 {[%clk 0:00:40]}  Re4 {[%clk 0:00:09]} 39. Qh8 {[%clk 0:00:35]}  Qe5+ {[%clk 0:00:09]} 40. Qxe5 {[%clk 0:00:29]}  Rxe5 {[%clk 0:00:10]} 41. c4 {[%clk 0:00:28]}  Ne7 {[%clk 0:00:10]} 42. Kg3 {[%clk 0:00:27]}  Re4 {[%clk 0:00:10]} 43. Rf4 {[%clk 0:00:27]}  Re3+ {[%clk 0:00:10]} 44. Rf3 {[%clk 0:00:27]}  Re4 {[%clk 0:00:10]} 45. Rf4 {[%clk 0:00:27]}  Re3+ {[%clk 0:00:11]} 46. Rf3 {[%clk 0:00:27]}  Re4 {[%clk 0:00:11]} 1/2-1/2


[Site "https://www.chess.com"]

[Event "Titled Tuesday Blitz July 6 2021"]
[White "Dan-Lowes"]
[Black "Alavkin, Arseny"]
[BlackFideId "4120612"]
[WhiteElo "2253"]
[BlackElo "2401"]
[Result "0-1"]
[Round "07"]
[TimeControl "180+1"]
[Date "2021.07.06"]
[WhiteClock "0:00:16"]
[BlackClock "0:00:27"]

1. e4 {[%clk 0:03:00]}  e6 {[%clk 0:02:47]} 2. d4 {[%clk 0:03:00]}  d5 {[%clk 0:02:48]} 3. Nc3 {[%clk 0:03:00]}  Bb4 {[%clk 0:02:47]} 4. e5 {[%clk 0:03:00]}  c5 {[%clk 0:02:47]} 5. a3 {[%clk 0:02:59]}  Bxc3+ {[%clk 0:02:48]} 6. bxc3 {[%clk 0:03:00]}  Qc7 {[%clk 0:02:48]} 7. Qg4 {[%clk 0:02:59]}  Ne7 {[%clk 0:02:49]} 8. Bd3 {[%clk 0:02:58]}  cxd4 {[%clk 0:02:48]} 9. Ne2 {[%clk 0:02:58]}  Nbc6 {[%clk 0:02:44]} 10. cxd4 {[%clk 0:02:55]}  Bd7 {[%clk 0:02:32]} 11. c3 {[%clk 0:02:49]}  O-O-O {[%clk 0:02:32]} 12. O-O {[%clk 0:02:49]}  Kb8 {[%clk 0:02:29]} 13. Bg5 {[%clk 0:02:48]}  Rc8 {[%clk 0:02:28]} 14. Rfb1 {[%clk 0:02:47]}  Ng6 {[%clk 0:02:28]} 15. Bb5 {[%clk 0:02:43]}  Na5 {[%clk 0:02:25]} 16. Bxd7 {[%clk 0:02:35]}  Qxd7 {[%clk 0:02:26]} 17. Qg3 {[%clk 0:02:24]}  Rc7 {[%clk 0:02:23]} 18. Rb4 {[%clk 0:02:22]}  Rhc8 {[%clk 0:02:20]} 19. Rab1 {[%clk 0:02:21]}  Nc4 {[%clk 0:02:17]} 20. a4 {[%clk 0:02:15]}  Ka8 {[%clk 0:02:11]} 21. h4 {[%clk 0:02:15]}  h5 {[%clk 0:02:08]} 22. Bc1 {[%clk 0:02:13]}  Qe7 {[%clk 0:01:54]} 23. Bg5 {[%clk 0:02:11]}  Qd7 {[%clk 0:01:54]} 24. Bc1 {[%clk 0:02:11]}  a6 {[%clk 0:01:41]} 25. Bg5 {[%clk 0:02:07]}  Nf8 {[%clk 0:01:31]} 26. Qf3 {[%clk 0:02:02]}  g6 {[%clk 0:01:30]} 27. Qd3 {[%clk 0:01:56]}  Qe8 {[%clk 0:01:27]} 28. Qd1 {[%clk 0:01:41]}  Nd7 {[%clk 0:01:26]} 29. Qb3 {[%clk 0:01:39]}  Na5 {[%clk 0:01:26]} 30. Qd1 {[%clk 0:01:32]}  Nb8 {[%clk 0:01:26]} 31. Bd2 {[%clk 0:01:17]}  Nc4 {[%clk 0:01:23]} 32. Nc1 {[%clk 0:01:14]}  Nc6 {[%clk 0:01:20]} 33. R4b3 {[%clk 0:01:09]}  N6a5 {[%clk 0:01:19]} 34. Rb4 {[%clk 0:01:08]}  Nxd2 {[%clk 0:01:08]} 35. Qxd2 {[%clk 0:01:09]}  Rxc3 {[%clk 0:01:08]} 36. Nd3 {[%clk 0:01:10]}  Rc2 {[%clk 0:00:59]} 37. Qg5 {[%clk 0:01:09]}  R8c4 {[%clk 0:00:50]} 38. Nc5 {[%clk 0:01:04]}  Rxb4 {[%clk 0:00:48]} 39. Rxb4 {[%clk 0:01:04]}  Ka7 {[%clk 0:00:47]} 40. Qe3 {[%clk 0:00:57]}  b6 {[%clk 0:00:47]} 41. Nb3 {[%clk 0:00:51]}  Nc6 {[%clk 0:00:43]} 42. Na1 {[%clk 0:00:35]}  Nxb4 {[%clk 0:00:25]} 43. Nxc2 {[%clk 0:00:35]}  Nxc2 {[%clk 0:00:26]} 44. Qc3 {[%clk 0:00:36]}  Ne1 {[%clk 0:00:21]} 45. Qxe1 {[%clk 0:00:34]}  Qxa4 {[%clk 0:00:21]} 46. Qc3 {[%clk 0:00:33]}  Qd7 {[%clk 0:00:20]} 47. Kh2 {[%clk 0:00:29]}  Kb7 {[%clk 0:00:21]} 48. Kg3 {[%clk 0:00:28]}  Qc7 {[%clk 0:00:20]} 49. Qa3 {[%clk 0:00:27]}  a5 {[%clk 0:00:20]} 50. f3 {[%clk 0:00:26]}  Ka6 {[%clk 0:00:20]} 51. Qf8 {[%clk 0:00:26]}  Kb5 {[%clk 0:00:20]} 52. Qa3 {[%clk 0:00:25]}  a4 {[%clk 0:00:20]} 53. Qb2+ {[%clk 0:00:24]}  Ka5 {[%clk 0:00:20]} 54. Qa3 {[%clk 0:00:22]}  b5 {[%clk 0:00:20]} 55. Qf8 {[%clk 0:00:22]}  b4 {[%clk 0:00:20]} 56. Qa8+ {[%clk 0:00:21]}  Kb5 {[%clk 0:00:20]} 57. Qe8+ {[%clk 0:00:21]}  Qc6 {[%clk 0:00:21]} 58. Qb8+ {[%clk 0:00:21]}  Kc4 {[%clk 0:00:21]} 59. Qa7 {[%clk 0:00:20]}  a3 {[%clk 0:00:21]} 60. Qxf7 {[%clk 0:00:18]}  a2 {[%clk 0:00:20]} 61. Qa7 {[%clk 0:00:17]}  Kb3 {[%clk 0:00:20]} 62. Kf4 {[%clk 0:00:15]}  Kb2 {[%clk 0:00:21]} 63. Kg5 {[%clk 0:00:14]}  a1=Q {[%clk 0:00:21]} 64. Qxa1+ {[%clk 0:00:14]}  Kxa1 {[%clk 0:00:22]} 65. Kxg6 {[%clk 0:00:15]}  b3 {[%clk 0:00:23]} 66. g4 {[%clk 0:00:14]}  b2 {[%clk 0:00:23]} 67. gxh5 {[%clk 0:00:15]}  b1=Q+ {[%clk 0:00:24]} 68. Kg7 {[%clk 0:00:15]}  Qd7+ {[%clk 0:00:25]} 69. Kg8 {[%clk 0:00:16]}  Qbh7+ {[%clk 0:00:26]} 70. Kf8 {[%clk 0:00:16]}  Qdf7# {[%clk 0:00:27]} 0-1


[Site "https://www.chess.com"]

[Event "Titled Tuesday Blitz July 6 2021"]
[White "Deviprasath, Sharvesh"]
[Black "Arutinian, David"]
[WhiteFideId "30938228"]
[BlackFideId "13601741"]
[WhiteElo "2102"]
[BlackElo "2525"]
[Result "0-1"]
[Round "07"]
[TimeControl "180+1"]
[Date "2021.07.06"]
[WhiteClock "0:00:04"]
[BlackClock "0:00:35"]

1. Nf3 {[%clk 0:02:59]}  Nf6 {[%clk 0:02:55]} 2. c4 {[%clk 0:03:00]}  e6 {[%clk 0:02:54]} 3. Nc3 {[%clk 0:02:59]}  d5 {[%clk 0:02:53]} 4. e3 {[%clk 0:03:00]}  Be7 {[%clk 0:02:51]} 5. b3 {[%clk 0:02:57]}  O-O {[%clk 0:02:51]} 6. Bb2 {[%clk 0:02:54]}  c5 {[%clk 0:02:50]} 7. cxd5 {[%clk 0:02:54]}  exd5 {[%clk 0:02:50]} 8. d4 {[%clk 0:02:54]}  Nc6 {[%clk 0:02:50]} 9. Be2 {[%clk 0:02:54]}  Re8 {[%clk 0:02:39]} 10. O-O {[%clk 0:02:50]}  Bg4 {[%clk 0:02:37]} 11. dxc5 {[%clk 0:02:35]}  Bxc5 {[%clk 0:02:37]} 12. Rc1 {[%clk 0:02:26]}  Bd6 {[%clk 0:02:35]} 13. h3 {[%clk 0:02:22]}  Be6 {[%clk 0:02:35]} 14. Nd4 {[%clk 0:02:17]}  Rc8 {[%clk 0:02:30]} 15. Bf3 {[%clk 0:01:54]}  Bb8 {[%clk 0:02:29]} 16. Qd2 {[%clk 0:01:37]}  Qd6 {[%clk 0:02:25]} 17. Rfd1 {[%clk 0:01:35]}  Qh2+ {[%clk 0:02:23]} 18. Kf1 {[%clk 0:01:24]}  Ne5 {[%clk 0:02:22]} 19. Ke2 {[%clk 0:01:16]}  Nxf3 {[%clk 0:02:04]} 20. Nxf3 {[%clk 0:01:17]}  Qd6 {[%clk 0:02:04]} 21. Qd4 {[%clk 0:01:05]}  a6 {[%clk 0:01:51]} 22. Kf1 {[%clk 0:00:29]}  Rcd8 {[%clk 0:01:50]} 23. Rd2 {[%clk 0:00:27]}  h6 {[%clk 0:01:39]} 24. Rcd1 {[%clk 0:00:26]}  Qe7 {[%clk 0:01:38]} 25. Ne2 {[%clk 0:00:20]}  Bf5 {[%clk 0:01:33]} 26. Nf4 {[%clk 0:00:19]}  Be4 {[%clk 0:01:32]} 27. Nh2 {[%clk 0:00:15]}  Qd7 {[%clk 0:01:24]} 28. Ng4 {[%clk 0:00:14]}  Qb5+ {[%clk 0:00:52]} 29. Kg1 {[%clk 0:00:14]}  Rd6 {[%clk 0:00:53]} 30. f3 {[%clk 0:00:12]}  Bf5 {[%clk 0:00:51]} 31. Nf2 {[%clk 0:00:09]}  Rdd8 {[%clk 0:00:45]} 32. g4 {[%clk 0:00:08]}  Be5 {[%clk 0:00:41]} 33. Qa4 {[%clk 0:00:06]}  Qxa4 {[%clk 0:00:40]} 34. bxa4 {[%clk 0:00:07]}  Bxb2 {[%clk 0:00:41]} 35. Rxb2 {[%clk 0:00:08]}  Bd7 {[%clk 0:00:41]} 36. Rxb7 {[%clk 0:00:07]}  Bxa4 {[%clk 0:00:41]} 37. Rd4 {[%clk 0:00:06]}  Bb5 {[%clk 0:00:41]} 38. h4 {[%clk 0:00:06]}  Rxe3 {[%clk 0:00:40]} 39. g5 {[%clk 0:00:06]}  hxg5 {[%clk 0:00:39]} 40. hxg5 {[%clk 0:00:06]}  Nh7 {[%clk 0:00:39]} 41. g6 {[%clk 0:00:06]}  fxg6 {[%clk 0:00:37]} 42. Nxg6 {[%clk 0:00:07]}  Ng5 {[%clk 0:00:36]} 43. Ne7+ {[%clk 0:00:06]}  Rxe7 {[%clk 0:00:35]} 44. Rxe7 {[%clk 0:00:04]} 0-1


[Site "https://www.chess.com"]